Cogmind - Beta 13 @@@ ROGUE MODE // 2024.03.11 @ 13:23:11 Player: Joel Result: Destroyed by Y-45 Defender with Heavy Assault Rifle Performance ------------- Evolutions (1) 500 Regions Visited (2) 400 Robots Destroyed (15) 75 Value Destroyed (256) 256 Prototype IDs (0) 0 Alien Tech Used (0) 0 Bonus (0) 0 TOTAL SCORE: 1231 Bonus ------- None Cogmind --------- Core Integrity 0/400 Matter 317/500 Energy 125/125 System Corruption 0% Temperature Cool (9) Movement Flying (520) Ox6 Location -9/Materials Parts ------- > --- POWER (2) -------- Light Ion Engine > --- PROPULSION (2) --- Flight Unit > --- UTILITY (2) ------ Large Storage Unit High-capacity Matter Pod > --- WEAPON (3) ------- (None) > --- INVENTORY (15) --- Small Storage Unit Large Battery (200) Sensor Array Terrain Scanner Peak State ------------ > --- POWER ------------ Light Ion Engine Light Ion Engine > --- PROPULSION ------- Light Treads Hover Unit > --- UTILITY ---------- Small Storage Unit High-capacity Matter Pod > --- WEAPON ----------- EM Pulse Gun Light Cannon Datajack > --- INVENTORY -------- Large Storage Unit Large Battery Sensor Array Terrain Scanner [Rating: 9] Favorites ----------- Power Light Ion Engine Engine Light Ion Engine Propulsion Light Treads Treads Light Treads Hover Unit Hover Unit Flight Unit Flight Unit Utility Small Storage Unit Storage Small Storage Unit Weapon Small Laser Energy Gun Small Laser Ballistic Gun Assault Rifle Ballistic Cannon Light Cannon Special Melee Weapon Datajack Build | -11 -10 -9 ------- Run | Yrd Mat Mat Slots Evolved 2 | . . 2 Power 1 | . . 1 Propulsion . | . . . Utility . | . . . Weapon 1 | . . 1 Parts Attached 18 | 5 1 12 Power 5 | 1 . 4 Engine 5 | 1 . 4 Core . | . . . Reactor . | . . . Propulsion 4 | 1 . 3 Treads 2 | 1 . 1 Leg . | . . . Wheel . | . . . Hover 1 | . . 1 Flight 1 | . . 1 Utility 3 | 1 1 1 Device . | . . . Storage 3 | 1 1 1 Processor . | . . . Hackware . | . . . Protection . | . . . Artifact . | . . . Weapon 6 | 2 . 4 Energy Gun 3 | 1 . 2 Energy Cannon . | . . . Ballistic Gun 1 | 1 . . Ballistic Cannon 1 | . . 1 Launcher . | . . . Special Weapon . | . . . Impact Weapon . | . . . Slashing Weapon . | . . . Piercing Weapon . | . . . Special Melee Weapon 1 | . . 1 Unidentified Prototypes . | . . . Parts Lost 8 | . . 8 Power 2 | . . 2 Propulsion 2 | . . 2 Utility . | . . . Weapon 4 | . . 4 Highest Loss Streak 8 | . . 8 To Critical Strikes . | . . . Average Slot Usage (%) 78 | . 73 84 Engine 15 | . 12 17 Treads 11 | . 12 9 Hover 2 | . . 5 Storage 22 | . 23 22 Energy Gun 10 | . 12 8 Ballistic Gun 6 | . 12 . Ballistic Cannon 4 | . . 9 Special Melee Weapon 4 | . . 9 Naked Turns . | . . . Heaviest Build 27 | 11 15 27 Greatest Support 20 | 20 20 20 Greatest Overweight (x) 6 | . 3 6 Average Overweight (x) . | . . 1 Largest Inventory Capacity 15 | 8 8 15 Average Capacity 7 | 6 8 8 Most Carried 8 | 6 8 7 Average Carried 4 | 3 5 4 Final Capacity 15 | 8 8 15 Final Carried 8 | 3 8 4 Class Distribution -------------------- 100% | Mutant Dominant Class ---------------- Mutant | -10/Materials Mutant | -9/Materials Resources | -11 -10 -9 ----------- Run | Yrd Mat Mat Matter Collected 478 | 226 33 219 Remotely . | . . . Salvage Created 309 | . 37 272 Parts 20 | . 2 18 Haulers Intercepted . | . . . Recyclers Shooed 1 | . . 1 Parts Field Recycled . | . . . Retrieved Matter . | . . . Parts Self-Destructed . | . . . Prevented . | . . . Kills | -11 -10 -9 ------- Run | Yrd Mat Mat Combat Hostiles Destroyed 11 | . 1 10 Guns 3 | . 1 2 Cannons 8 | . . 8 Classes Destroyed 6 | . 1 5 Worker 1 | . . 1 Recycler 1 | . . 1 Watcher 2 | . . 2 Swarmer 7 | . . 7 Grunt 3 | . 1 2 Sentry 1 | . . 1 Best Kill Streak 6 | . 1 6 Combat Bots Only 4 | . 1 4 Max Kills in Single Turn 1 | . 1 1 Gunslinging . | . . . Exploded . | . . . Melee . | . . . Uniques/NPCs Destroyed . | . . . Combat | -11 -10 -9 -------- Run | Yrd Mat Mat Hostile Shots Fired 124 | . 4 120 Missed 35 | . . 35 Damage Taken 1034 | . 44 990 Core 405 | . . 405 Absorbed by Shields . | . . . Core Remaining (%) 100 | 100 100 . Volleys Fired 39 | . 3 36 Largest 2 | . 2 2 Hottest 75 | . 60 75 Shots Fired 56 | . 6 50 Gun 28 | . 6 22 Cannon 28 | . . 28 Launcher . | . . . Special . | . . . Kinetic 31 | . 3 28 Thermal 11 | . 3 8 Explosive . | . . . Electromagnetic 14 | . . 14 Robot Hit Streak 6 | . 3 6 Robot Miss Streak 2 | . 1 2 Penetration Max . | . . . Secondary Targets . | . . . Shots Hit Robots 40 | . 4 36 Core Hits 19 | . 2 17 Critical Kills . | . . . Critical Parts Destroyed . | . . . Critical Strikes 5 | . . 5 Blast 3 | . . 3 Corrupt 2 | . . 2 Melee Attacks 5 | . . 5 Impact . | . . . Slashing . | . . . Piercing . | . . . Sneak Attacks 5 | . . 5 Combat Hostiles . | . . . Follow-up Attacks . | . . . Damage Inflicted 593 | . 45 548 Guns 180 | . 45 135 Cannons 375 | . . 375 Explosions 38 | . . 38 Melee . | . . . Ramming . | . . . Kinetic 386 | . 11 375 Thermal 130 | . 34 96 Explosive . | . . . Electromagnetic 77 | . . 77 Impact . | . . . Slashing . | . . . Piercing . | . . . Highest Corruption . | . . . Average Corruption . | . . . Corruption Purged . | . . . Corruption Blocked . | . . . Overload Shots . | . . . Overflow Damage . | . . . Projectiles . | . . . Explosions . | . . . Melee . | . . . Knockbacks 5 | . . 5 Impact . | . . . Kinetic 4 | . . 4 Secondary 1 | . . 1 Self-Inflicted Damage . | . . . Shots . | . . . Rammed . | . . . Targets Rammed . | . . . Kicked . | . . . Crushed . | . . . Highest Temperature 142 | . 18 142 Average Temperature 45 | . 14 49 Received Heat Transfer 372 | . 24 348 Siege Activations . | . . . Robots Corrupted . | . . . Combat Hostiles . | . . . Parts Fried 1 | . . 1 Impact Corruptions . | . . . Robots Melted . | . . . Combat Hostiles . | . . . Parts Melted . | . . . Heat Transferred 300 | . 75 225 Parts Sabotaged . | . . . Parts Stolen . | . . . Parts Stripped . | . . . Power Chain Reactions 1 | . . 1 Alert | -11 -10 -9 ------- Run | Yrd Mat Mat Peak Influence 320 | . 45 320 Initial 18 | . . 18 Average 88 | . 40 153 Maximum Alert Level 1 | . . 1 Low Security (%) 84 | 100 100 66 Level 1 15 | . . 33 Level 2 . | . . . Level 3 . | . . . Level 4 . | . . . Level 5 . | . . . High Security . | . . . Max Security . | . . . Squads Dispatched 3 | . 1 2 Investigation . | . . . Extermination . | . . . Reinforcement 3 | . 1 2 Assault . | . . . Garrison . | . . . Intercept . | . . . Searches Triggered . | . . . Construction Impeded . | . . . Haulers Reinforced . | . . . Active Scanning Responses . | . . . Cargo Convoy Interrupts . | . . . Stealth | -11 -10 -9 --------- Run | Yrd Mat Mat Distress Signals 1 | . . 1 Communications Jammed . | . . . Distress Signals . | . . . Times Spotted 22 | . 2 20 Peak Tracking Total 5 | . 1 5 Tactical Retreats 2 | . . 2 Traps | -11 -10 -9 ------- Run | Yrd Mat Mat Traps Triggered 2 | . 2 . Indirectly . | . . . Trap Hack Attempts . | . . . Triggered . | . . . Disarmed . | . . . Reprogrammed . | . . . Reused . | . . . Traps Extracted . | . . . Installed . | . . . Triggered . | . . . Machines | -11 -10 -9 ---------- Run | Yrd Mat Mat Machines Disabled . | . . . Max in Single Turn . | . . . Machines Repaired . | . . . Machines Dismantled . | . . . Machines Sabotaged . | . . . Overloaded Fab Kills . | . . . Hacking | -11 -10 -9 --------- Run | Yrd Mat Mat Machines Accessed . | . . . Terminals . | . . . Fabricators . | . . . Repair Stations . | . . . Recycling Units . | . . . Scanalyzers . | . . . Garrison Access . | . . . Total Hacks . | . . . Successful . | . . . Failed . | . . . Catastrophic . | . . . Database Lockouts . | . . . Manual . | . . . Terminals . | . . . Fabricators . | . . . Repair Stations . | . . . Recycling Units . | . . . Scanalyzers . | . . . Garrison Access . | . . . Terminal Hacks . | . . . Fabricator Hacks . | . . . Repair Station Hacks . | . . . Recycling Unit Hacks . | . . . Scanalyzer . | . . . Garrison Access Hacks . | . . . Unauthorized Hacks . | . . . Terminals . | . . . Fabricators . | . . . Repair Stations . | . . . Recycling Units . | . . . Scanalyzers . | . . . Garrison Access . | . . . Data Cores Recovered . | . . . Used . | . . . Hacking Detections . | . . . Full Trace Events . | . . . Feedback Events . | . . . Feedback Blocked . | . . . Robot Schematics Acquired . | . . . Robots Built . | . . . Authchips . | . . . Time . | . . . Total Robot Build Rating . | . . . Part Schematics Acquired . | . . . Parts Built . | . . . Authchips . | . . . Time . | . . . Total Part Build Rating . | . . . Parts Repaired . | . . . Time . | . . . Parts Recycled . | . . . Recycled Matter . | . . . Retrieved Matter . | . . . Retrieved Components . | . . . Parts Scanalyzed . | . . . Part Schematics Acquired . | . . . Parts Damaged . | . . . Bothacking | -11 -10 -9 ------------ Run | Yrd Mat Mat Used RIF Installer . | . . . Robots Hacked 2 | . . 2 Non-combat 2 | . . 2 Combat . | . . . Robot Hacks Applied 2 | . . 2 no_distress 2 | . . 2 Relay Couplers Released . | . . . Fabnet Peak Effective % . | . . . Robots Rewired . | . . . Allies Hacked . | . . . Hacks Repelled . | . . . Allies | -11 -10 -9 -------- Run | Yrd Mat Mat Total Allies . | . . . Largest Group . | . . . Highest-Rated Group . | . . . Highest-Rated Ally . | . . . Total Orders . | . . . Ally Attacks . | . . . Total Damage . | . . . Kills . | . . . Allies Corrupted . | . . . Allies Melted . | . . . Intel | -11 -10 -9 ------- Run | Yrd Mat Mat Robot Analysis Total . | . . . Derelict Logs Recovered . | . . . Drone Launches . | . . . Drone Recoveries . | . . . Exploration | -11 -10 -9 ------------- Run | Yrd Mat Mat Turns Passed 708 | 59 322 327 Spaces Moved 321 | 35 193 93 Core 42 | 7 24 11 Treads 257 | 28 169 60 Legs . | . . . Wheels . | . . . Hover 20 | . . 20 Flight 2 | . . 2 Fastest Speed 50 | 50 150 150 Average Speed 178 | 138 159 233 Slowest Speed 520 | 160 200 520 Overloaded Moves . | . . . Propulsion Burnouts . | . . . Robots Hopped . | . . . Cave-ins Triggered . | . . . Exploration Rate (%) 15 | 4 34 7 Regions Visited 2 Branch Regions . Pre-discovered Areas . | . . . Known Exits Taken . | . . . Unknown Exits Taken 2 | 1 1 . Scrap Searched . | . . . Spaces Dug . | . . . Terrain Destroyed 2 | . . 2 Melee . | . . . Projectile . | . . . AOE 2 | . . 2 Terrain Rammed . | . . . Walls Destroyed . | . . . Machines Disabled . | . . . Actions | -11 -10 -9 --------- Run | Yrd Mat Mat Total 399 | 45 202 152 Wait . | . . . Move 319 | 34 192 93 Hop . | . . . Pick Up 18 | 6 6 6 Fast Attach 2 | 2 . . Attach 14 | 3 1 10 Detach . | . . . Swap 2 | . . 2 Drop . | . . . Fire 39 | . 3 36 Melee 5 | . . 5 Ram . | . . . Kick . | . . . Crush . | . . . Escape Stasis . | . . . Rewire . | . . . Trap . | . . . Miscellaneous . | . . . Route ------- -11/Scrapyard -10/Materials -9/Materials History --------- Turn | Location | Event 7 | -11/Scrapyard | Discovered new exit (range 16) 60 | -11/Scrapyard | Entered Materials 287 | -10/Materials | Discovered new exit (range 14) 315 | -10/Materials | Build established: Mutant 382 | -10/Materials | Entered another Materials area 382 | -9/Materials | Evolved 2 slots: Power x1, Weapon x1 687 | -9/Materials | Core integrity fell below 50% 698 | -9/Materials | Core integrity fell below 20% 709 | -9/Materials | Destroyed by Y-45 Defender with Heavy Assault Rifle Last Messages --------------- 00655_ K-01 Serf destroyed. 00655_ R-06 Scavenger collects Flight Unit. 00656_ Acquired 14 matter. 00657_ K-01 Serf collects debris. 00658_ Lgt. Cannon destroyed. 00661_ Acquired Sml. Laser. 00664_ Datajack destroyed. 00669_ Destroyed Ion Engine. 00670_ R-06 Scavenger collects Med. Matter Pod. 00673_ Lgt. Treads destroyed. 00673_ R-06 Scavenger collects Lgt. Ion Engine. 00679_ G-34 Mercenary destroyed. 00682_ R-06 Scavenger collects Wheel. 00683_ Sml. Laser destroyed. 00689_ K-01 Serf collects debris. 00697_ Critical hit (Burn: +37). 00704_ U-05 Engineer builds a Door. 00705_ K-01 Serf collects debris. 00708_ R-06 Scavenger collects Lgt. Armor Plating. Map ----- +----------------------------------------------------+ | | | | | | | | | | | | | ?????????????????????????????????????????????????? | | ?????????????????????????????????????????????????? | | ?????????????????????????????????????????????????? | | ?????????????????????????????????????????????????? | | ?????????????????????????????????????????????????? | | ?????????????????????????????????????????????????? | | ?############????????????????????????????????????? | | ?# # #????????????????????????????????????? | | ?# # #????????????????????????????????????? | | ?# # #????????????????????????????????????? | | ?# + #????????????????????????????????????? | | ?# # #????????????????????????????????????? | | ?# # #????????????????????????????????????? | | ?# #####+##????????????????????????????????????? | | ?# #???# #?????????????????????????????????????? | | ?# #???# #?????????????????????????????????????? | | ? #???# #??????????????????%#?????????????????? | | ## ##### ################## ########??????????? | | ?# %%! ^ Y % ????????? | | ?# % = ^^ @ r ????????? | | ?# k u g % ????????? | | ?#######+######+######+######+########???????????? | | ????????????# # ????????????????????????? | | ????????????# # """ ???????????????????????? | | ????????????# # """ #??????????????????????? | | ????????????# ! # """ #??????????????????????? | | ????????????# !! # #??????????????????????? | | ????????????#% # """ #??????????????????????? | | ????????????#+###### """ #??????????????????????? | | ????????????# #????#????? #??????????????????????? | | ????????????#%#?????????? #??????????????????????? | | ????????????# #??????????????????????????????????? | | ????????????# ###### """ ????????????????????????? | | ????????????# + """ ????????????????????????? | | ????????????#=###### #??????????????????????? | | ????????????# #??????????????????????????????????? | | ????????????# #??????????????????????????????????? | | ????????????# #??????????????????????????????????? | | ????????????# #??????????????????????????????????? | | ???????????? ??????????????????????????????????? | | ????????????###??????????????????????????????????? | | ?????????????????????????????????????????????????? | | ?????????????????????????????????????????????????? | | ?????????????????????????????????????????????????? | +----------------------------------------------------+ Best States ------------- Heat Dissipation 28 Energy Generation 15 Energy Capacity 150 Matter Stores 347 Matter Capacity 500 Sight Range 16 Terrain Scan Density 10 Evasion (%) 50 Recoil Reduction 1 Item Schematics ----------------- None Robot Schematics ------------------ None Fabricated ------------ Nothing Alien Tech Used ----------------- None Achievements -------------- None Challenges ------------ None Game ------ Seed MediumExoskeletonLoader Manual? 0 Play Time 00:11:43 Cumulative 25.0 hours Start 2024.02.28 @ 12:23:12 End 2024.03.11 @ 13:23:11 Sessions 3 Manual Loads 0 Difficulty Rogue Special Mode None Game No. 43 Rogue 43 Adventurer 0 Explorer 0 Win Type - Total 0 Types 0/0/0/0/0/0/0/0/0 Lore% 9 Gallery% 19 Achievement% 18 Wizard Run 0 Options --------- Layout 1 ASCII 0 Keyboard 0 Movement Mouse Keybinds 0 Fullscreen 1 Font 24/Tamsyn Map View 50x35 Zoom Use 0% Tactical HUD 1 Map Filters NONE Filters NONE Steam 1 RUN: 7c72770c-70ea-4eb5-b443-7e2a7169bb4f